bitfinex-derivatives/quotes_ETHF0:USTF0_20250505
["timestamp","ask_amount","ask_price","bid_price","bid_amount"]
[1746452734372,3.2078,1800.1,1800.0,5.10605]
[1746452734666,3.2078,1800.1,1800.0,6.73595]
[1746452735065,1.5282,1800.4,1800.3,1.11087]
[1746452735258,1.5282,1800.4,1800.3,5.10587]
[1746452735461,1.6746,1800.5,1800.4,1.1108]
[1746452735662,1.11062,1800.7,1800.6,1.11062]
[1746452735863,1.6746,1800.7,1800.6,5.10562]
[1746452736469,1.6168,1800.9,1800.8,1.11056]
[1746452737168,1.6746,1800.9,1800.8,1.11056]
[1746452737568,9.16934396,1801.1,1801.0,1.11043]
[1746452737764,10.84394396,1801.1,1801.0,5.10543]
[1746452737966,9.16934396,1801.1,1801.0,5.10543]
[1746452738165,9.16934396,1801.1,1801.0,6.60033]
[1746452738463,2.70763,1801.4,1801.3,1.11025]
[1746452738770,2.70763,1801.4,1801.3,3.995]
[1746452738959,2.70763,1801.4,1801.3,5.10525]
[1746452739364,7.70763,1801.4,1801.3,3.995]
[1746452740673,2.70763,1801.4,1801.3,3.995]
[1746452741571,2.70763,1801.4,1801.3,5.10525]
[1746452742071,2.70759,1801.4,1801.3,5.10525]
[1746452742372,2.70759,1801.4,1801.3,3.995]
[1746452742870,2.70759,1801.4,1801.3,5.10525]
[1746452743278,1.5974,1801.4,1801.3,5.10525]
[1746452744372,4.37295,1801.4,1801.1,3.994]
[1746452744672,1.11031,1801.2,1801.1,5.10437]
[1746452744870,4.31811,1801.2,1801.1,5.10437]
[1746452745071,2.79891,1801.2,1801.1,3.994]
[1746452745469,5.98331,1801.4,1801.3,1.11025]
[1746452745470,3.2078,1801.4,1801.3,1.11025]
[1746452745673,4.8964,1801.4,1801.3,1.11025]
[1746452746272,1.6886,1801.4,1801.3,1.11025]
[1746452746472,1.5045,1801.5,1801.4,1.11019]
[1746452746666,1.6886,1801.5,1801.4,5.10419]
[1746452746974,1.5022,1801.8,1801.6,1.11006]
[1746452746975,1.5896,1801.7,1801.6,1.11006]
[1746452747173,3.1605,1801.7,1801.6,1.11006]
[1746452747475,4.2705,1801.7,1801.6,1.11006]
[1746452747670,1.11006,1801.6,1801.5,2.69078]
[1746452747869,1.11006,1801.6,1801.4,3.994]
[1746452747870,1.11013,1801.5,1801.4,3.994]
[1746452748270,2.68103,1801.5,1801.4,3.994]
[1746452748468,1.11031,1801.2,1801.1,3.994]
[1746452748673,1.11031,1801.2,1801.1,5.10437]
[1746452748875,1.11027,1801.3,1801.2,1.11027]
[1746452749773,1.11031,1801.2,1801.1,3.994]
[1746452749964,1.11031,1801.2,1801.1,5.10437]
[1746452751969,1.11031,1801.2,1801.1,3.994]
[1746452752170,4.31811,1801.2,1801.1,3.994]
[1746452752377,5.86521,1801.2,1801.1,3.994]
[1746452752573,7.49701,1801.2,1801.1,3.994]
[1746452753170,7.49701,1801.2,1801.1,5.10437]
[1746452753377,6.3867,1801.2,1801.1,5.10437]
[1746452753680,1.5149,1801.3,1801.2,1.11031]
[1746452753881,2.62515,1801.3,1801.2,2.70831]
[1746452754081,2.62515,1801.3,1801.2,1.11031]
[1746452754682,1.5149,1801.3,1801.2,1.11031]
[1746452754991,2.71492,1801.4,1801.3,1.11025]
[1746452755485,4.31779,1801.8,1801.5,2.77532]
[1746452755691,5.92249,1801.8,1801.7,1.11]
[1746452756393,1.11,1801.7,1801.6,5.10302]
[1746452756594,2.784,1801.7,1801.6,5.10302]
[1746452757792,2.784,1801.7,1801.6,3.993]
[1746452758296,2.784,1801.7,1801.6,5.10306]
[1746452759394,2.77522,1801.6,1801.3,3.992]
[1746452759696,5.79538,1801.5,1801.4,1.11019]
[1746452760591,4.6852,1801.5,1801.4,1.11019]
[1746452760784,2.69093,1801.5,1801.4,1.11019]
[1746452760989,2.69093,1801.5,1801.4,2.71049]
[1746452761198,1.5808,1801.5,1801.4,2.71049]
[1746452761693,2.69093,1801.5,1801.4,2.71049]
[1746452762098,1.5808,1801.5,1801.4,2.71049]
[1746452762484,4.31784,1801.7,1801.6,1.11006]
[1746452762685,3.2078,1801.7,1801.6,5.10206]
[1746452762884,4.3178,1801.7,1801.6,5.10206]
[1746452763489,4.8907,1801.7,1801.6,5.10206]
[1746452764096,6.0007,1801.7,1801.6,5.10206]
[1746452764296,6.0007,1801.7,1801.6,3.992]
[1746452764699,6.0007,1801.7,1801.6,5.10206]
[1746452764899,1.6829,1801.7,1801.6,5.10206]
[1746452765695,1.6344,1801.8,1801.7,1.11]
[1746452765893,1.6344,1801.8,1801.7,2.7896]
[1746452766093,3.2398,1801.8,1801.6,7.1998]
[1746452766297,3.2398,1801.8,1801.7,1.11]
[1746452766492,3.2398,1801.8,1801.7,2.7896]
[1746452767597,5.85287,1802.1,1802.0,1.10982]
[1746452767793,7.45827,1802.1,1802.0,5.10182]
[1746452767993,7.45826,1802.1,1802.0,5.10182]
[1746452769006,6.3485,1802.1,1802.0,5.10182]
[1746452769297,1.6054,1802.1,1802.0,5.10182]
[1746452769898,2.71516,1802.1,1802.0,5.10182]
[1746452770496,1.6054,1802.1,1802.0,5.10182]
[1746452770699,2.71516,1802.1,1802.0,5.10182]
[1746452772195,1.6054,1802.1,1802.0,5.10182]
[1746452772397,2.71516,1802.1,1802.0,5.10182]
[1746452772598,1.5303,1802.3,1802.0,7.1998]
[1746452772802,1.7247,1802.5,1802.4,1.10957]
[1746452772998,7.44274206,1802.8,1802.7,1.10939]
[1746452773392,10.27676206,1802.8,1802.7,5.10039]
[1746452773597,13.48456206,1802.8,1802.7,3.991]
[1746452773797,13.48456206,1802.8,1802.7,5.10039]
[1746452774403,10.27676206,1802.8,1802.7,3.991]
[1746452774592,10.27676206,1802.8,1802.7,5.10039]
[1746452774791,10.27676206,1802.8,1802.7,3.991]
[1746452775398,2.77347,1802.7,1801.9,1.10983]
[1746452775600,1.10994,1801.8,1801.7,1.10996]
[1746452775801,1.10999,1801.8,1801.7,1.10999]
[1746452776003,3.1972,1801.9,1801.6,3.991]
[1746452776306,2.7511,1801.7,1801.6,5.10106]
[1746452777401,5.9589,1801.7,1801.6,3.991]
[1746452777602,1.11019,1801.4,1801.3,7.1988]
[1746452777808,1.11019,1801.4,1801.0,7.39078242]
[1746452777809,2.77548,1801.4,1801.0,7.39078242]
[1746452777998,2.77548,1801.4,1801.2,13.52197482]
[1746452777999,5.89405,1801.3,1801.2,13.52197482]
[1746452778301,5.89405,1801.3,1801.1,18.12046601]
[1746452778302,1.11031,1801.2,1801.1,18.12046601]
[1746452778500,2.82911,1801.2,1801.1,18.12046601]
[1746452778700,7.82911,1801.2,1801.1,18.12046601]
[1746452779304,1.11037,1801.1,1801.0,13.75721423]
[1746452779598,1.11074,1800.5,1800.4,22.16709012]
[1746452781701,1.11074,1800.5,1800.4,5.71401601]
[1746452781910,3.2078,1800.6,1800.5,1.11074]
[1746452782107,1.11067,1800.7,1800.5,8.42365601]
[1746452782409,3.2078,1800.9,1800.8,5.71401601]
[1746452782811,0.70842577,1801.1,1800.9,1.11047]
[1746452783109,1.81880577,1801.1,1801.0,7.31291601]
[1746452783709,1.81879577,1801.1,1801.0,7.31291601]
[1746452783903,5.02659577,1801.1,1801.0,1.5989]
[1746452784306,1.1105,1800.9,1800.8,3.992]
[1746452784506,4.3183,1800.9,1800.8,9.70601601]
[1746452784712,3.2078,1800.9,1800.8,9.70601601]
[1746452784904,4.3183,1800.9,1800.8,9.70601601]
[1746452785106,3.2078,1800.9,1800.8,9.70601601]
[1746452785601,3.2078,1800.9,1800.8,10.81657601]
[1746452786112,4.3183,1800.9,1800.8,9.70601601]
[1746452786811,4.3183,1800.9,1800.8,10.81657601]
[1746452786812,3.2078,1800.9,1800.8,10.81657601]
[1746452787206,3.2078,1800.9,1800.8,15.81657601]
[1746452787406,1.11022,1801.4,1800.8,19.02437601]
[1746452787604,7.11942298,1801.7,1801.4,6.82415601]
[1746452787804,1.11009,1801.6,1801.5,1.6261]
[1746452788410,1.11006,1801.6,1801.5,1.6261]
[1746452789303,7.34274206,1801.7,1801.6,1.11006]
[1746452789508,7.34274206,1801.7,1801.6,6.82407601]
[1746452789709,7.34274206,1801.7,1801.6,11.82407601]
[1746452789911,7.34274206,1801.7,1801.6,13.45347601]
[1746452790099,7.34274206,1801.7,1801.6,8.45347601]
[1746452790412,7.34274206,1801.7,1801.6,16.66127601]
[1746452790707,8.45274206,1801.7,1801.6,13.21977601]
[1746452790906,8.45274206,1801.7,1801.5,1.6261]
[1746452790907,1.11006,1801.6,1801.5,1.6261]
[1746452791109,1.11006,1801.6,1801.5,5.6171]
[1746452791309,7.34274206,1801.7,1801.5,6.7272]
[1746452791310,8.45279206,1801.7,1801.5,6.7272]
[1746452791508,8.45274206,1801.7,1801.6,6.82407601]
[1746452791814,7.34274206,1801.7,1801.6,6.82407601]
[1746452792206,7.34274206,1801.7,1801.6,8.44037601]
[1746452792408,1.10983,1802.0,1801.6,10.53811601]
[1746452792609,1.10983,1802.0,1801.8,6.82391601]
[1746452792808,1.10983,1802.0,1801.9,1.6937]
[1746452793405,1.10983,1802.0,1801.9,7.40771601]
[1746452793910,1.10983,1802.0,1801.9,1.6937]
[1746452794109,1.5486,1802.2,1801.9,1.6937]
[1746452794316,0.1,1802.3,1802.2,1.10969]
[1746452794514,1.20963,1802.3,1802.2,8.51740601]
[1746452794717,0.1,1802.3,1802.2,8.51740601]
[1746452795112,1.20963,1802.3,1802.2,1.6937]
[1746452795417,1.10985,1802.0,1801.8,5.09991]
[1746452795716,1.10997,1801.8,1801.6,1.11002]
[1746452796011,1.10997,1801.8,1801.7,1.6615]
[1746452796208,1.11006,1801.6,1801.5,9.70401601]
[1746452796408,1.11006,1801.6,1801.5,5.6515]
[1746452797007,2.65736,1801.6,1801.5,6.76163]
[1746452797506,2.65736,1801.6,1801.5,5.6515]
[1746452797707,3.2078,1801.9,1801.8,1.10994]
[1746452798016,7.45325,1802.2,1801.8,6.82391601]
[1746452798216,2.77441,1802.1,1801.5,3.99]
[1746452798515,2.77487,1801.8,1801.4,3.2078]
[1746452798713,5.98253,1801.9,1801.5,3.99]
[1746452798714,1.5473,1801.7,1801.5,3.99]
[1746452798915,1.10999,1801.8,1801.7,6.82401601]
[1746452799121,4.679,1802.2,1801.8,5.71401601]
[1746452799311,1.10982,1802.0,1801.9,6.82386601]
[1746452799506,1.4712,1802.2,1801.7,3.2078]
[1746452799507,1.10988,1801.9,1801.8,12.34252601]
[1746452800018,9.00059,1802.2,1801.8,12.34252601]
[1746452800019,1.10986,1802.0,1801.9,1.10987]
[1746452800206,1.10988,1801.9,1801.8,12.34251601]
[1746452800413,3.0185,1802.2,1801.9,5.71401601]
[1746452800614,1.10982,1802.0,1801.9,6.82384601]
[1746452800815,1.10988,1801.9,1801.8,3.99]
[1746452801017,1.10988,1801.9,1801.4,3.2078]
[1746452801018,1.11013,1801.5,1801.4,3.99]
[1746452801315,1.11028,1801.3,1801.2,3.99]
[1746452801516,1.11037,1801.1,1801.0,1.5286]
[1746452801814,1.11043,1801.0,1800.9,5.10046]
[1746452802019,1.11043,1801.0,1800.9,9.70401601]
[1746452802213,1.11043,1801.0,1800.9,10.81451601]
[1746452802413,1.1104,1801.1,1801.0,1.11037]
[1746452802607,1.11043,1801.0,1800.9,9.70401601]
[1746452802814,1.11043,1801.0,1800.9,3.99]
[1746452803014,1.5473,1801.2,1800.9,3.99]
[1746452803319,1.11032,1801.2,1801.1,6.82433601]
[1746452803914,1.1102,1801.4,1801.3,1.1102]
[1746452804121,1.11025,1801.3,1801.2,8.39217601]
[1746452804310,1.6086,1801.7,1801.3,5.71401601]
[1746452804514,1.11019,1801.4,1801.3,6.82421601]
[1746452804808,1.11022,1801.4,1801.3,6.82423601]
[1746452805226,1.11017,1801.5,1801.4,1.11017]
[1746452805414,1.11016,1801.5,1801.4,6.82417601]
[1746452805720,1.11002,1801.7,1801.6,1.11001]
[1746452806017,1.11011,1801.6,1801.5,1.11011]
[1746452806220,1.11025,1801.3,1801.2,1.5679]
[1746452806520,7.8556,1801.5,1801.1,1.11035]
[1746452806821,1.11039,1801.1,1801.0,1.11039]
[1746452807019,1.11036,1801.2,1801.1,1.11037]
[1746452807417,3.2078,1801.5,1801.1,9.70501601]
[1746452807617,1.11019,1801.4,1801.3,5.71401601]
[1746452808117,1.11025,1801.3,1801.2,1.6085]
[1746452808322,1.11031,1801.2,1801.1,3.991]
[1746452808624,1.11043,1801.0,1800.9,2.63085]
[1746452808816,1.11042,1801.1,1801.0,6.82443601]
[1746452809121,1.11025,1801.3,1801.2,6.82429601]
[1746452809321,5.98336,1801.4,1800.9,11.22541601]
[1746452809519,4.31823,1801.0,1800.9,5.71401601]
[1746452809719,1.1105,1800.9,1800.8,3.991]
[1746452810128,1.1105,1800.9,1800.8,1.6804]
[1746452810524,1.1105,1800.9,1800.5,3.991]
[1746452810525,1.11066,1800.7,1800.6,1.11067]
[1746452810824,1.11066,1800.7,1800.6,6.82468601]
[1746452811817,1.11053,1800.9,1800.8,1.11056]
[1746452812015,1.11053,1800.9,1800.8,6.82457601]
[1746452812316,1.11053,1800.9,1800.8,1.11056]
[1746452812518,1.11062,1800.7,1800.6,2.72115]
[1746452812722,1.11062,1800.7,1800.6,1.6105]
[1746452813221,3.2078,1800.8,1800.7,1.11062]
[1746452813420,3.2078,1800.8,1800.7,6.82463601]
[1746452813723,3.2078,1800.8,1800.7,8.43513601]
[1746452814317,5.98312,1801.5,1801.1,1.11037]
[1746452814522,1.11025,1801.3,1801.2,1.11027]
[1746452814722,1.11032,1801.2,1801.1,1.11033]
[1746452815127,1.11032,1801.2,1801.1,6.82434601]
[1746452815830,1.11032,1801.2,1801.1,5.71401601]
[1746452816027,1.11037,1801.1,1801.0,1.1104]
[1746452816225,1.11043,1801.0,1800.9,5.5967]
[1746452816424,1.11056,1800.8,1800.7,1.11058]
[1746452816625,1.11056,1800.8,1800.7,10.81559601]
[1746452816824,1.11056,1800.8,1800.7,6.82459601]
[1746452817130,1.11052,1800.9,1800.8,1.1105]
[1746452817331,1.11049,1801.0,1800.9,1.1105]
[1746452818132,1.11054,1800.9,1800.8,1.11052]
[1746452818324,1.1105,1800.9,1800.8,5.71401601]
[1746452818524,1.11056,1800.8,1800.7,5.10257]
[1746452819032,1.11056,1800.8,1800.7,3.992]
[1746452819229,5.98415,1800.9,1800.5,2.60217]
[1746452819531,1.11062,1800.7,1800.6,6.82469601]
[1746452819729,1.11062,1800.7,1800.6,5.71401601]
[1746452820032,1.11062,1800.7,1800.6,6.82469601]
[1746452820235,1.11068,1800.6,1800.5,6.59819]
[1746452820637,1.11068,1800.6,1800.5,12.31220601]
[1746452821334,1.11066,1800.7,1800.5,11.20151601]
[1746452821530,4.28617,1801.1,1800.7,5.71401601]
[1746452821728,1.11053,1800.9,1800.8,6.82454601]
[1746452821927,1.11053,1800.9,1800.8,1.11053]
[1746452822128,2.77653,1800.8,1800.6,3.996]
[1746452822429,1.11062,1800.7,1800.6,5.10668]
[1746452822929,1.11062,1800.7,1800.6,3.996]
[1746452823134,1.11062,1800.7,1800.6,5.10668]
[1746452823329,1.11062,1800.8,1800.7,1.1106]
[1746452823634,1.11062,1800.8,1800.7,6.82461601]
[1746452823834,1.11054,1800.9,1800.8,1.11052]
[1746452824337,1.11054,1800.9,1800.8,5.71401601]
[1746452824936,1.11054,1800.9,1800.8,6.82457601]
[1746452825438,1.11054,1800.9,1800.8,5.71401601]
[1746452825630,1.11062,1800.7,1800.6,5.10664]
[1746452826130,1.11062,1800.7,1800.6,10.82065601]
[1746452826330,1.11062,1800.7,1800.6,3.996]
[1746452826530,1.11068,1800.6,1800.5,4.6993]
[1746452826834,1.11068,1800.6,1800.5,1.4915]
[1746452827039,1.11074,1800.5,1800.4,5.6017]
[1746452827239,1.1108,1800.4,1800.3,3.2078]
[1746452827539,2.77744,1800.2,1799.8,5.10717]
[1746452827731,1.11115,1799.9,1799.8,3.996]
[1746452828137,1.11115,1799.9,1799.8,10.82118601]
[1746452828327,1.11115,1799.9,1799.8,9.71001601]
[1746452828527,1.11115,1799.9,1799.7,5.79951]
[1746452828528,1.11117,1799.8,1799.7,1.4805]
[1746452828735,1.11117,1799.8,1799.7,5.71401601]
[1746452829139,1.11124,1799.7,1799.6,5.6245]
[1746452829442,1.11124,1799.7,1799.6,1.6285]
[1746452829740,1.11119,1799.8,1799.7,1.1112]
[1746452830041,1.11111,1800.0,1799.9,6.82510601]
[1746452830239,1.11111,1799.9,1799.8,1.7142]
[1746452830441,1.11111,1799.9,1799.8,7.42821601]
[1746452830739,1.11111,1799.9,1799.8,1.7142]
[1746452831130,1.11111,1799.9,1799.8,7.42821601]
[1746452831530,1.11107,1800.0,1799.8,7.42821601]
[1746452831727,1.11107,1800.0,1799.9,1.7142]
[1746452832340,1.11117,1799.8,1799.7,3.997]
[1746452832528,1.11117,1799.8,1799.7,5.5947]
[1746452832730,3.2078,1800.1,1799.7,8.42295601]
[1746452832938,1.11115,1799.9,1799.8,5.71401601]
[1746452833338,1.11117,1799.8,1799.7,1.632]
[1746452833534,1.11124,1799.7,1799.6,1.6285]
[1746452833834,1.11142,1799.4,1799.3,1.5269]
[1746452834242,1.5483,1799.6,1799.3,5.71401601]
[1746452834444,1.5483,1799.6,1799.4,5.71401601]
[1746452834646,1.11136,1799.5,1799.4,5.71401601]
[1746452834842,1.11147,1799.4,1799.3,1.11148]
[1746452835343,4.31619,1799.9,1799.5,5.71401601]
[1746452835542,1.11122,1799.8,1799.7,5.71401601]
[1746452835743,1.11111,1799.9,1799.8,5.71401601]
[1746452836444,1.11111,1799.9,1799.8,6.82518601]
[1746452836639,1.11111,1799.9,1799.8,5.71401601]
[1746452837146,1.11111,1799.9,1799.8,6.82518601]
[1746452837341,1.11111,1799.9,1799.8,5.71401601]
[1746452837942,1.11124,1799.7,1799.6,3.0262]
[1746452838134,1.11161,1799.1,1798.8,21.92086312]
[1746452838341,1.11161,1799.1,1799.0,8.46920156]
[1746452838537,1.11161,1799.1,1799.0,14.18321757]
[1746452838840,2.77871,1799.4,1799.0,14.18321757]
[1746452838841,3.2078,1799.5,1799.0,20.85071757]
[1746452839143,9.98015,1799.6,1799.0,20.85071757]
[1746452839144,1.11142,1799.4,1799.1,3.998]
[1746452839339,1.11143,1799.4,1799.1,9.98481]
[1746452839539,1.11143,1799.4,1799.3,6.82546601]
[1746452839743,1.11143,1799.4,1799.3,5.71401601]
[1746452840041,1.11143,1799.4,1799.3,6.82549601]
[1746452840549,1.1114,1799.5,1799.4,1.11142]
[1746452840844,3.2078,1799.7,1799.5,5.71401601]
[1746452841148,7.2058,1799.9,1799.6,6.82531601]
[1746452841443,3.2078,1799.9,1799.8,5.71401601]
[1746452841643,1.1113,1799.6,1799.5,7.2108]
[1746452843748,1.1113,1799.6,1799.5,12.92481601]
[1746452844044,1.1113,1799.6,1799.4,1.1114]
[1746452844045,1.11161,1799.1,1799.0,7.35753156]
[1746452844441,1.11161,1799.1,1799.0,13.04933757]
[1746452844641,1.11161,1799.1,1799.0,11.93766757]
[1746452845751,3.2078,1799.3,1799.0,11.93766757]
[1746452845950,3.2078,1799.3,1799.2,4.58013601]
[1746452845951,1.11153,1799.3,1799.2,4.58013601]
[1746452846152,2.77829,1799.6,1799.5,1.11132]
[1746452846153,1.11132,1799.6,1799.5,1.11132]
[1746452846349,1.11132,1799.6,1799.5,5.69145601]
[1746452846549,1.11132,1799.6,1799.5,4.58013601]
[1746452846750,1.11132,1799.6,1799.5,5.69149601]
[1746452847941,4.75453588,1799.8,1799.7,1.11124]
[1746452848145,3.64331588,1799.8,1799.7,5.69137601]
[1746452848340,3.64331588,1799.8,1799.7,14.69037601]
[1746452848652,1.11109,1800.0,1799.9,1.11111]
[1746452848852,1.11105,1800.0,1799.9,4.58013601]
[1746452849751,1.11105,1800.0,1799.9,6.24903601]
[1746452850146,1.11105,1800.0,1799.9,1.6689]
[1746452850347,1.11111,1799.9,1799.8,1.6296]
[1746452850547,1.11124,1799.7,1799.6,3.2078]
[1746452850752,1.1113,1799.6,1799.5,1.6689]
[1746452850950,1.11142,1799.4,1799.3,1.5286]
[1746452851551,1.11142,1799.4,1799.3,6.10873601]
[1746452851750,1.11141,1799.5,1799.3,6.10873601]
[1746452851953,2.77825,1799.7,1799.5,4.58013601]
[1746452852146,2.77835,1799.6,1799.4,4.58013601]
[1746452852341,1.11142,1799.4,1799.3,1.5286]
[1746452852954,1.11142,1799.4,1799.3,6.10873601]
[1746452853150,1.11135,1799.6,1799.5,1.11134]
[1746452853351,1.11135,1799.6,1799.5,4.58013601]
[1746452853648,1.11142,1799.4,1799.3,2.64004]
[1746452854048,1.11142,1799.4,1799.3,6.10873601]
[1746452854548,1.11142,1799.4,1799.3,7.22021601]
[1746452854949,3.2078,1799.7,1799.3,14.31653601]
[1746452855156,1.11124,1799.7,1799.6,4.58013601]
[1746452855549,5.21683232,1800.0,1799.6,6.23963601]
[1746452855749,4.75628232,1800.0,1799.9,4.58013601]
[1746452855956,1.11117,1799.8,1799.7,1.6667]
[1746452856161,1.11124,1799.7,1799.6,1.6595]
[1746452856457,1.11148,1799.3,1799.2,1.6667]
[1746452856656,1.11148,1799.3,1799.2,7.90643601]
[1746452856950,1.11148,1799.3,1799.2,11.90043601]
[1746452857654,1.11148,1799.3,1799.2,5.6536]
[1746452857856,2.77835,1799.6,1799.2,10.23373601]
[1746452858060,1.11141,1799.5,1799.4,1.1114]
[1746452858250,1.11129,1799.7,1799.6,5.69142601]
[1746452858454,1.11129,1799.7,1799.6,4.58013601]
[1746452858855,1.11129,1799.7,1799.6,6.24973601]
[1746452859150,1.11129,1799.7,1799.6,7.36103601]
[1746452859354,1.11116,1799.9,1799.8,1.11116]
[1746452859555,1.11111,1799.9,1799.8,9.68527601]
[1746452860354,3.2078,1800.1,1799.8,8.57413601]
[1746452860550,4.31879,1800.1,1800.0,4.58013601]
[1746452860849,1.11124,1799.7,1799.6,1.6696]
[1746452861048,1.11124,1799.7,1799.6,6.24973601]
[1746452861445,1.11124,1799.7,1799.6,4.58013601]
[1746452862355,1.1113,1799.6,1799.5,3.994]
[1746452862556,1.1113,1799.6,1799.5,8.57413601]
[1746452863354,3.2078,1799.6,1799.3,3.0829]
[1746452863560,1.11148,1799.3,1799.2,3.2078]
[1746452864059,1.11161,1799.1,1799.0,13.99960156]
[1746452864251,1.11161,1799.1,1799.0,17.46806757]
[1746452864252,4.31941,1799.1,1799.0,17.46806757]
[1746452864647,1.11161,1799.1,1799.0,17.46806757]
[1746452865555,1.11161,1799.1,1799.0,18.57973757]
[1746452865755,1.11161,1799.1,1799.0,11.35153156]
[1746452866158,1.11161,1799.1,1799.0,7.35753156]
[1746452866159,2.65961,1799.1,1799.0,7.35753156]
[1746452866357,4.24521,1799.1,1799.0,7.35753156]
[1746452866760,4.35637669,1799.1,1799.0,7.35753156]
[1746452867659,1.22277669,1799.1,1799.0,7.35753156]
[1746452867860,1.22277669,1799.1,1799.0,11.93766757]
[1746452868401,1.22277669,1799.1,1799.0,13.50556757]
[1746452869176,4.95477669,1799.1,1799.0,13.50556757]
[1746452869583,4.95477669,1799.1,1799.0,7.35753156]
[1746452869771,8.16257669,1799.1,1799.0,7.35753156]
[1746452873673,12.5240643,1799.1,1799.0,7.35753156]
[1746452874173,12.5240643,1799.1,1799.0,6.05941156]
[1746452874471,19.0715643,1799.1,1799.0,4.89598156]
[1746452874770,14.0715643,1799.1,1799.0,4.89598156]
[1746452874973,19.0715643,1799.1,1799.0,3.66282156]
[1746452875174,19.0715643,1799.1,1799.0,2.20725156]
[1746452875466,20.89778615,1799.1,1799.0,1.56e-06]
[1746452877564,15.89778615,1799.1,1799.0,1.56e-06]
[1746452878769,14.35028615,1799.1,1799.0,4.58013757]
[1746452879176,14.35028615,1799.1,1799.0,1.56e-06]
[1746452879477,20.89808615,1799.1,1799.0,1.56e-06]
[1746452880070,15.89808615,1799.1,1799.0,1.56e-06]
[1746452880276,17.72430801,1799.1,1799.0,1.56e-06]
[1746452882269,17.72430801,1799.1,1799.0,4.58013757]
[1746452882270,12.96870801,1799.1,1799.0,4.58013757]
[1746452882975,12.96870801,1799.1,1799.0,6.24403757]
[1746452883880,16.17650801,1799.1,1799.0,6.24403757]
[1746452884374,10.41952059,1799.1,1799.0,6.24403757]
[1746452884571,1.11173,1798.9,1798.8,14.71506312]
[1746452884779,4.31953,1798.9,1798.8,11.64607312]
[1746452884968,8.31453,1798.9,1798.8,10.38266312]
[1746452885172,12.04653,1798.9,1798.8,9.26720312]
[1746452885373,13.59443,1798.9,1798.8,7.96716312]
[1746452885771,13.59443,1798.9,1798.8,9.56066312]
[1746452886778,13.70560905,1798.9,1798.8,9.56066312]
[1746452887475,19.18842204,1798.9,1798.8,9.56066312]
[1746452887680,19.89746594,1798.9,1798.8,9.56066312]
[1746452888679,19.89746594,1798.9,1798.8,7.96716312]
[1746452889680,19.89746594,1798.9,1798.8,11.42226069]
[1746452889681,14.35456594,1798.9,1798.8,11.42226069]
[1746452889883,14.35456594,1798.9,1798.8,12.98716069]
[1746452890069,15.90166594,1798.9,1798.8,9.53206312]
[1746452890274,14.35456594,1798.9,1798.8,9.53206312]
[1746452890769,14.35456594,1798.9,1798.8,12.98716069]
[1746452890971,14.35456594,1798.9,1798.8,16.14406069]
[1746452891183,10.62256594,1798.9,1798.8,16.14406069]
[1746452891375,6.30303594,1798.9,1798.8,22.25585069]
[1746452891685,7.41476594,1798.9,1798.8,21.14406069]
[1746452891882,10.62256594,1798.9,1798.8,16.14406069]
[1746452892476,10.62256594,1798.9,1798.8,6.62939312]
[1746452892671,16.16466594,1798.9,1798.8,5.49690312]
[1746452892882,14.61756594,1798.9,1798.8,8.95200069]
[1746452893080,14.61756594,1798.9,1798.8,10.51950069]
[1746452893275,8.42570905,1798.9,1798.8,10.51950069]
[1746452893477,4.43070905,1798.9,1798.8,10.51950069]
[1746452893787,4.43070905,1798.9,1798.8,13.66120069]
[1746452895574,1.22290905,1798.9,1798.8,13.66120069]
[1746452896683,4.43070905,1798.9,1798.8,13.66120069]
[1746452897783,4.43070905,1798.9,1798.8,5.69143312]
[1746452897989,1.11179,1798.8,1798.7,15.3181189]
[1746452898187,1.11229,1798.0,1797.9,3.1965]
[1746452898380,4.32009,1798.0,1797.9,3.1965]
[1746452898579,4.32009,1798.0,1797.9,6.65159757]
[1746452898786,1.11229,1798.0,1797.9,6.65159757]
[1746452899586,4.32009,1798.0,1797.9,6.65159757]
[1746452900186,1.11229,1798.0,1797.9,11.65159757]
[1746452900387,3.2078,1798.2,1797.9,6.65159757]
[1746452900588,4.41988,1798.4,1798.1,3.45509757]
[1746452900889,3.3078,1798.4,1798.3,4.56719757]
[1746452901188,3.3078,1798.4,1798.3,9.56719757]
[1746452901389,3.3078,1798.4,1798.3,14.46589757]
[1746452901595,3.3078,1798.4,1798.3,9.46589757]
[1746452903087,1.11187,1798.7,1798.6,1.11192]
[1746452903387,4.31964,1798.8,1798.6,4.56701757]
[1746452903587,1.11176,1798.9,1798.8,1.11179]
[1746452903888,1.11176,1798.9,1798.8,2.68479]
[1746452904085,12.52452154,1799.0,1798.9,1.11173]
[1746452904288,12.52452154,1799.0,1798.9,9.34762757]
[1746452904483,12.52452154,1799.0,1798.9,6.13982757]
[1746452904683,13.63619154,1799.0,1798.9,10.13482757]
[1746452904885,12.52452154,1799.0,1798.9,10.13482757]
[1746452905279,4.40142154,1799.0,1798.9,15.13482757]
[1746452905488,1.11147,1799.4,1799.2,1.11152]
[1746452905682,2.77904,1799.1,1798.1,3.2078]
[1746452905889,1.11179,1798.8,1798.7,1.98135757]
[1746452906084,8.05159,1798.8,1798.7,1.98135757]
[1746452906287,9.84899,1798.8,1798.7,1.98135757]
[1746452906693,8.05159,1798.8,1798.7,1.98135757]
[1746452906895,9.84899,1798.8,1798.7,1.98135757]
[1746452907091,2.90919,1798.8,1798.7,1.98135757]
[1746452907489,6.11699,1798.8,1798.7,1.98135757]
[1746452907791,1.11198,1798.5,1798.4,3.995]
[1746452907992,1.11204,1798.4,1798.3,7.2028]
[1746452908389,1.11204,1798.4,1798.3,9.18415757]
[1746452908795,1.11204,1798.4,1798.3,5.97635757]
[1746452908796,4.31984,1798.4,1798.3,5.97635757]
[1746452908990,1.11222,1798.1,1798.0,1.7792]
[1746452909392,1.11222,1798.1,1798.0,3.76055757]
[1746452910296,4.31999,1798.2,1798.0,3.76055757]